lending/lending_fUSD_20240417
["ID","MTS","AMOUNT","RATE_DAILY","PERIOD"]
[322810610,1713345056534,500.0,0.00031861,30]
[322810611,1713345056720,240.67308392,0.00031861,30]
[322810612,1713345056930,503.7777908,0.00031861,30]
[322810613,1713345056959,500.0,0.00031861,30]
[322810614,1713345057038,500.0,0.00031861,30]
[322810615,1713345057131,500.0,0.00031861,30]
[322810616,1713345057307,500.0,0.00031861,30]
[322810617,1713345057610,500.0,0.00031861,30]
[322810618,1713345057892,414.78,0.00031861,30]
[322810619,1713345059517,500.0,0.00031861,30]
[322810620,1713345059809,504.9988133,0.00031861,30]
[322810621,1713345060490,500.0,0.00031861,30]
[322810622,1713345060811,500.0,0.00031861,30]
[322810623,1713345060913,500.0,0.00031861,30]
[322810624,1713345061064,500.0,0.00031861,30]
[322810625,1713345061299,507.78296603,0.00031861,30]
[322810626,1713345061328,500.0,0.00031861,30]
[322810627,1713345061364,500.0,0.00031861,30]
[322810628,1713345061392,500.0,0.00031861,30]
[322810629,1713345061582,507.0826689,0.00031861,30]
[322810630,1713345061648,500.0,0.00031861,30]
[322810631,1713345061682,500.0,0.00031861,30]
[322810632,1713345061848,500.0,0.00031861,30]
[322810633,1713345061948,500.0,0.00031861,30]
[322810634,1713345062085,500.0,0.00031861,30]
[322810635,1713345062129,500.0,0.00031861,30]
[322810636,1713345062246,500.0,0.00031861,30]
[322810637,1713345062509,288.79,0.00031861,30]
[322810638,1713345062683,361.16554902,0.00031861,30]
[322810639,1713345062856,381.99194243,0.00031861,30]
[322810640,1713345063191,150.5,0.00019716,15]
[322810641,1713345063468,500.0,0.00031861,30]
[322810642,1713345063737,580.77,0.00031861,30]
[322810643,1713345063778,151.51,0.00019706,15]
[322810644,1713345063826,242.65,0.00019716,15]
[322810645,1713345063871,155.95,0.00019716,15]
[322810646,1713345064066,151.02,0.00019716,15]
[322810647,1713345064111,210.09,0.00019716,15]
[322810648,1713345064226,150.68,0.00019716,15]
[322810649,1713345064462,253.0,0.00019716,15]
[322810650,1713345064596,150.5,0.00019716,15]
[322810651,1713345064757,151.22,0.00019716,15]
[322810652,1713345064967,500.0,0.00031861,30]
[322810653,1713345065002,413.17760132,0.00031861,30]
[322810654,1713345065046,253.0,0.00019706,15]
[322810655,1713345065085,150.5,0.00019706,15]
[322810656,1713345065126,500.0,0.00031861,30]
[322810657,1713345065290,500.0,0.00031861,30]
[322810658,1713345065410,505.45690461,0.00031861,30]
[322810659,1713345065585,150.5,0.00019696,15]
[322810660,1713345065709,500.0,0.00031861,30]
[322810661,1713345065815,500.0,0.00031861,30]
[322810662,1713345065848,500.0,0.00031861,30]
[322810663,1713345065959,253.0,0.00019696,15]
[322810664,1713345066053,150.5,0.0001999,15]
[322810665,1713345066106,500.0,0.00031861,30]
[322810666,1713345066140,500.0,0.00031861,30]
[322810667,1713345066369,508.28220975,0.00031861,30]
[322810668,1713345066401,261.91,0.00031861,30]
[322810669,1713345066561,150.5,0.0001998,15]
[322810670,1713345066733,253.0,0.0001999,15]
[322810671,1713345067313,150.5,0.0001997,15]
[322810672,1713345067348,497.70411048,0.00031861,30]
[322810673,1713345067388,500.0,0.00031861,30]
[322810674,1713345067424,253.0,0.0001998,15]
[322810675,1713345067818,500.0,0.00031861,30]
[322810676,1713345067847,500.0,0.00031861,30]
[322810677,1713345067877,169.01,0.0001999,15]
[322810678,1713345067924,253.0,0.0001997,15]
[322810679,1713345067953,500.0,0.00031861,30]
[322810680,1713345068040,500.0,0.00031861,30]
[322810681,1713345068071,500.0,0.00031861,30]
[322810682,1713345068205,1115.59,0.00031861,30]
[322810683,1713345068237,585.19,0.00031861,30]
[322810684,1713345068297,500.0,0.00031861,30]
[322810685,1713345068340,514.98004853,0.00031861,30]
[322810686,1713345068427,253.0,0.0001999,15]
[322810687,1713345068506,1115.59,0.00031861,30]
[322810688,1713345068537,500.0,0.00031861,30]
[322810689,1713345068569,500.0,0.00031861,30]
[322810690,1713345068754,1115.59,0.00031861,30]
[322810691,1713345068814,500.0,0.00031861,30]
[322810692,1713345068842,500.0,0.00031861,30]
[322810693,1713345069027,253.0,0.0001998,15]
[322810694,1713345069056,1115.59,0.00031861,30]
[322810695,1713345069088,500.0,0.00031861,30]
[322810696,1713345069116,305.81,0.00031861,30]
[322810697,1713345069306,1115.59,0.00031861,30]
[322810698,1713345069335,500.0,0.00031861,30]
[322810699,1713345069629,1115.59,0.00031861,30]
[322810700,1713345069668,253.0,0.00020988,15]
[322810701,1713345069706,500.0,0.00031861,30]
[322810702,1713345069895,1115.59,0.00031861,30]
[322810703,1713345069946,500.0,0.00031861,30]
[322810704,1713345070180,262.68,0.00020978,15]
[322810705,1713345070210,1115.59,0.00031861,30]
[322810706,1713345070244,584.41703404,0.00031861,30]
[322810707,1713345070278,500.0,0.00031861,30]
[322810708,1713345070447,1115.59,0.00031861,30]
[322810709,1713345070509,527.28949513,0.00031861,30]
[322810710,1713345070560,500.0,0.00031861,30]
[322810711,1713345070703,1115.59,0.00031861,30]
[322810712,1713345070857,500.0,0.00031861,30]
[322810713,1713345070955,1115.59,0.00031861,30]
[322810714,1713345071120,500.0,0.00031861,30]
[322810715,1713345071397,500.0,0.00031861,30]
[322810716,1713345071576,1115.59,0.00031861,30]
[322810717,1713345071665,500.0,0.00031861,30]
[322810718,1713345071858,1115.59,0.00031861,30]
[322810719,1713345071961,500.0,0.00031861,30]
[322810720,1713345072124,1115.59,0.00031861,30]
[322810721,1713345072248,220.86002064,0.00031861,30]
[322810722,1713345072429,1115.59,0.00031861,30]
[322810723,1713345072684,1115.59,0.00031861,30]
[322810724,1713345072942,1115.59,0.00031861,30]
[322810725,1713345073214,500.0,0.00031861,30]
[322810726,1713345073243,1115.59,0.00031861,30]
[322810727,1713345073466,531.43195758,0.00031861,30]
[322810728,1713345073508,1115.59,0.00031861,30]
[322810729,1713345073747,500.0,0.00031861,30]
[322810730,1713345073931,1115.59,0.00031861,30]
[322810731,1713345074001,505.51544131,0.00031861,30]
[322810732,1713345074220,1115.59,0.00031861,30]
[322810733,1713345074387,500.0,0.00031861,30]
[322810734,1713345074446,1115.59,0.00031861,30]
[322810735,1713345074723,1115.59,0.00031861,30]
[322810736,1713345074977,500.0,0.00031861,30]
[322810737,1713345075007,1115.73,0.00031861,30]
[322810738,1713345075264,500.0,0.00031861,30]
[322810739,1713345075388,500.0,0.00031861,30]
[322810740,1713345075601,500.0,0.00031861,30]
[322810741,1713345075673,500.0,0.00031861,30]
[322810742,1713345075851,500.0,0.00031861,30]
[322810743,1713345075908,503.47069077,0.00031861,30]
[322810744,1713345076136,500.0,0.00031861,30]
[322810745,1713345076274,166.49881569,0.00031861,30]
[322810746,1713345076407,500.0,0.00031861,30]
[322810747,1713345076679,500.0,0.00031861,30]
[322810748,1713345076990,503.85563147,0.00031861,30]
[322810749,1713345077020,500.0,0.00031861,30]
[322810750,1713345077048,500.0,0.00031861,30]
[322810751,1713345077077,500.0,0.00031861,30]
[322810752,1713345077207,500.0,0.00031861,30]
[322810753,1713345077245,500.0,0.00031861,30]
[322810754,1713345077510,500.0,0.00031861,30]
[322810755,1713345077542,500.0,0.00031861,30]
[322810756,1713345077574,513.15909938,0.00031861,30]
[322810757,1713345077603,500.0,0.00031861,30]
[322810758,1713345077632,582.85,0.00031861,30]
[322810759,1713345077666,503.41983586,0.00031861,30]
[322810760,1713345077717,500.0,0.00031861,30]
[322810761,1713345077856,500.0,0.00031861,30]
[322810762,1713345077991,500.0,0.00031861,30]
[322810763,1713345078107,500.0,0.00031861,30]
[322810764,1713345078296,500.0,0.00031861,30]
[322810765,1713345078604,500.0,0.00031861,30]
[322810766,1713345078874,508.09948965,0.00031861,30]
[322810767,1713345078903,500.0,0.00031861,30]
[322810768,1713345079197,500.0,0.00031861,30]
[322810769,1713345079470,500.0,0.00031861,30]
[322810770,1713345079635,500.0,0.00031861,30]
[322810771,1713345079756,500.0,0.00031861,30]
[322810772,1713345079997,513.09982091,0.00031861,30]
[322810773,1713345080136,500.0,0.00031861,30]
[322810774,1713345080166,500.0,0.00031861,30]
[322810775,1713345080411,321.02,0.00031861,30]
[322810776,1713345080441,500.0,0.00031861,30]
[322810777,1713345080636,500.0,0.00031861,30]
[322810778,1713345080693,500.0,0.00031861,30]
[322810779,1713345080919,500.0,0.00031861,30]
[322810780,1713345080960,500.0,0.00031861,30]
[322810781,1713345081211,550.61,0.00031861,30]
[322810782,1713345081244,500.0,0.00031861,30]
[322810783,1713345081442,477.53921203,0.00031861,30]
[322810784,1713345081503,500.0,0.00031861,30]
[322810785,1713345081769,500.0,0.00031861,30]
[322810786,1713345082028,385.27696987,0.00031861,30]
[322810787,1713345082342,500.0,0.00031861,30]
[322810788,1713345082378,500.0,0.00031861,30]
[322810789,1713345082557,504.82651174,0.00031861,30]
[322810790,1713345082617,500.0,0.00031861,30]
[322810791,1713345082646,395.82759024,0.00031861,30]
[322810792,1713345082892,500.0,0.00031861,30]
[322810793,1713345083166,500.0,0.00031861,30]
[322810794,1713345083433,500.0,0.00031861,30]
[322810795,1713345083544,500.0,0.00031861,30]
[322810796,1713345083689,500.0,0.00031861,30]
[322810797,1713345083722,500.0,0.00031861,30]
[322810798,1713345083789,500.0,0.00031861,30]
[322810799,1713345083930,500.0,0.00031861,30]
[322810800,1713345083959,500.0,0.00031861,30]
[322810801,1713345083988,500.0,0.00031861,30]
[322810802,1713345084113,504.18951049,0.00031861,30]
[322810803,1713345084228,477.78,0.00031861,30]
[322810804,1713345084260,510.22497631,0.00031861,30]
[322810805,1713345084513,253.98582403,0.00031861,30]
[322810806,1713345084637,500.0,0.00031861,30]
[322810807,1713345085274,534.87839073,0.00031861,30]
[322810808,1713345085918,502.47960634,0.00031861,30]
[322810809,1713345086556,500.0,0.00031861,30]
[322810810,1713345086830,509.90468871,0.00031861,30]
[322810811,1713345086963,500.0,0.00031861,30]
[322810812,1713345087235,541.30953691,0.00031861,30]
[322810813,1713345088077,507.07706201,0.00031861,30]
[322810814,1713345089368,500.0,0.00031861,30]
[322810815,1713345089569,500.0,0.00031861,30]
[322810816,1713345089610,506.0281893,0.00031861,30]
[322810817,1713345089675,502.67148849,0.00031861,30]
[322810818,1713345089964,500.0,0.00031861,30]
[322810819,1713345090189,500.0,0.00031861,30]
[322810820,1713345090243,341.49,0.00031861,30]
[322810821,1713345090420,500.0,0.00031861,30]
[322810822,1713345090451,191.80339339,0.00031861,30]
[322810823,1713345090480,530.06517567,0.00031861,30]
[322810824,1713345091253,510.6151491,0.00031861,30]
[322810825,1713345092044,500.0,0.00031861,30]
[322810826,1713345092580,273.16915017,0.00031861,30]
[322810827,1713345092727,500.0,0.00031861,30]
[322810828,1713345092936,506.56114412,0.00031861,30]
[322810829,1713345093326,502.03401057,0.00031861,30]
[322810831,1713345095039,500.0,0.00031861,30]
[322810832,1713345095324,508.58768435,0.00031861,30]
[322810833,1713345097291,505.82895491,0.00031861,30]
[322810834,1713345097689,500.0,0.00031861,30]
[322810835,1713345098057,500.0,0.00031861,30]
[322810836,1713345098289,500.0,0.00031861,30]
[322810837,1713345098365,121.80912185,0.00031861,30]
[322810838,1713345183689,251.0,0.0001958,15]
[322810839,1713345184175,251.0,0.0001957,15]
[322810840,1713345184675,251.0,0.0001956,15]
[322810841,1713345185174,251.0,0.0001999,15]
[322810842,1713345185665,251.0,0.0001998,15]
[322810843,1713345186213,251.0,0.0001997,15]
[322810844,1713345186676,251.0,0.0001999,15]
[322810845,1713345187183,251.0,0.0001998,15]
[322810846,1713345187664,251.0,0.0002097,15]
[322810847,1713345188170,258.64,0.0002096,15]
[322810848,1713345231631,371.39,0.00015589,2]
[322810853,1713345392241,301.041718,0.00028,30]
[322810855,1713345422575,151.041718,0.00028,30]
[322810856,1713345423352,151.041718,0.00028,30]
[322810857,1713345423858,151.041718,0.00028,30]
[322810858,1713345424200,151.041718,0.00028,30]
[322810859,1713345424538,151.041718,0.00028,30]
[322810860,1713345424898,151.041718,0.00028,30]
[322810861,1713345425295,151.041718,0.00028,30]
[322810862,1713345425688,151.041718,0.00028,30]
[322810863,1713345426108,151.041718,0.00028,30]
[322810864,1713345426950,151.041718,0.00028,30]
[322810865,1713345436294,151.041718,0.00028,30]
[322810866,1713345436918,151.041718,0.00028,30]
[322810867,1713345451194,151.041718,0.00028,30]
[322810868,1713345463863,158.041718,0.00028,30]
[322810869,1713345502382,-1388.16314387,0.00017506,2]
[322810870,1713345502404,-281.62,0.00017507,2]
[322810871,1713345502425,-330.21685613,0.00017507,2]
[322810872,1713345503256,-32.64314387,0.00017507,2]
[322810874,1713345748761,352.82,0.0001615,2]
[322810878,1713345929534,1614.53685613,0.00017,2]
[322810879,1713345929554,140.5079301,0.00017,2]
[322810880,1713346199163,335.17,0.00015679,2]
[322810896,1713346232242,-302.00000055,0.00017577,2]
[322810897,1713346232253,-500.0,0.00017578,2]
[322810898,1713346232263,-92.25649219,0.00017595,2]
[322810899,1713346232277,-280.46350781,0.00017595,2]
[322810900,1713346232287,-1000.0,0.00017614,2]
[322810901,1713346232298,-500.0,0.0001768,2]
[322810902,1713346232308,-241.57,0.00017719,2]
[322810903,1713346232318,-160.5873794,0.00017739,2]
[322810904,1713346232328,-158.4,0.00017754,2]
[322810905,1713346232338,-558.64,0.00017821,2]
[322810906,1713346232348,-747.13,0.00017891,2]
[322810907,1713346232358,-499.99,0.00017891,2]
[322810908,1713346232368,-335.17,0.00017943,2]
[322810909,1713346232379,-156.09,0.00018039,2]
[322810910,1713346232389,-156.09,0.00018066,2]
[322810911,1713346232399,-156.09,0.00018093,2]
[322810912,1713346232409,-10000.0,0.00018098,2]
[322810913,1713346232419,-156.09,0.0001812,2]
[322810914,1713346232430,-156.09,0.00018147,2]
[322810915,1713346232441,-216.7,0.00018159,2]
[322810916,1713346232452,-166.86,0.00018205,2]
[322810917,1713346232462,-999.51691893,0.00018219,2]
[322810918,1713346232473,-5448.2749,0.000188,2]
[322810919,1713346232483,-1141.56412,0.0001881,2]
[322810920,1713346232493,-1000.0,0.00018847,2]
[322810921,1713346232504,-200.0,0.00018848,2]
[322810922,1713346232514,-1000.0,0.00018848,2]
[322810923,1713346232524,-500.0,0.00018848,2]
[322810924,1713346232534,-1140.0,0.0001888,2]
[322810926,1713346232549,-5717.0,0.0001888,2]
[322810929,1713346232559,-15603.93867628,0.0001888,2]
[322810931,1713346232578,-612.0246358,0.0001888,2]
[322810934,1713346232590,-911.68,0.0001888,2]
[322810941,1713346232625,-7220.05168792,0.0001888,2]
[322810945,1713346232636,-340.426,0.0001888,2]
[322810948,1713346232646,-168.98212765,0.000189,2]
[322810951,1713346232656,-5960.92363401,0.000189,2]
[322810954,1713346232666,-1501.843,0.000189,2]
[322810957,1713346232676,-956.86651497,0.000189,2]
[322810960,1713346232687,-317.33395762,0.000189,2]
[322810962,1713346232697,-2551.52433858,0.000189,2]
[322810964,1713346232707,-411.51476323,0.000189,2]
[322810966,1713346232717,-926.42590299,0.000189,2]
[322810968,1713346232727,-517.0,0.00018905,2]
[322810970,1713346232737,-639.0,0.00018905,2]
[322810971,1713346232747,-154.22,0.0001899,2]
[322810972,1713346232757,-275.01070827,0.0001899,2]
[322810973,1713346232768,-1059.13916344,0.00018998,2]
[322810974,1713346232778,-155.0,0.00018998,2]
[322810975,1713346232788,-1866.30633727,0.00018998,2]
[322810976,1713346232798,-732.90773638,0.00018998,2]
[322810977,1713346232809,-192.46391051,0.00018998,2]
[322810978,1713346232818,-4154.25704137,0.00018998,2]
[322810979,1713346232829,-786.03244682,0.00018998,2]
[322810980,1713346232839,-1588.59486958,0.00018998,2]
[322810981,1713346232850,-186.45589413,0.00018998,2]
[322810982,1713346232860,-615.63738046,0.00018998,2]
[322810984,1713346232870,-684.35779044,0.00018998,2]
[322810986,1713346232880,-1737.67662085,0.00018998,2]
[322810988,1713346232890,-2644.62166605,0.00018998,2]
[322810990,1713346232900,-1159.22347418,0.00018998,2]
[322810992,1713346232911,-1242.52473403,0.00018998,2]
[322810993,1713346232921,-453.93526871,0.00019,2]
[322810994,1713346232931,-2897.63849122,0.00019,2]
[322811000,1713346238335,-702.77405617,0.00018098,2]
[322811001,1713346238390,-2046.68932388,0.00018098,2]
[322811002,1713346238447,-722.0632557,0.00018098,2]
[322811003,1713346238502,-4022.7165844,0.00018098,2]
[322811005,1713346240217,-257.465,0.00018098,2]
[322811007,1713346240940,-965.172,0.00018098,2]
[322811008,1713346240956,-1283.11977985,0.00018098,2]
[322811009,1713346240966,-4094.00085301,0.00019,2]
[322811010,1713346240979,-899.20318369,0.00019,2]
[322811011,1713346240990,-9887.1467351,0.00019,2]
[322811012,1713346241002,-21205.00261219,0.00019,2]
[322811015,1713346243313,-1271021.8637663,0.00019,2]
[322811019,1713346244117,-637.0716,0.00019,2]
[322811020,1713346244135,-49333.41937408,0.00019,2]
[322811021,1713346244187,-617.96403516,0.00019,2]
[322811026,1713346246272,-2017.62724224,0.00019,2]
[322811027,1713346246301,-440.74979347,0.00019,2]
[322811028,1713346246364,-479.07370437,0.00019,2]
[322811029,1713346246413,-573.43013765,0.00019,2]
[322811030,1713346246469,-585.79333653,0.00019,2]
[322811073,1713346869793,301.65,0.0001565,2]
[322811074,1713347167032,-635.364073,0.00017629,2]
[322811077,1713347350796,160.03,0.00017582,2]
[322811078,1713347369486,286.56,0.00015753,2]
[322811085,1713347432371,-800.0,0.000177,2]
[322811086,1713347432382,-378.438,0.000178,2]
[322811087,1713347432392,-286.56,0.00018017,2]
[322811088,1713347432402,-956.1336563,0.000182,2]
[322811089,1713347432425,-4043.8663437,0.000182,2]
[322811090,1713347432434,-5464.17999776,0.00018256,2]
[322811091,1713347432443,-2296.37190465,0.00018256,2]
[322811092,1713347432453,-861.17986341,0.00018256,2]
[322811093,1713347432462,-838.51186582,0.00018256,2]
[322811094,1713347432471,-317.33395762,0.00018256,2]
[322811095,1713347432481,-1782.56806475,0.00018256,2]
[322811096,1713347432490,-183.7301656,0.00018256,3]
[322811097,1713347432499,-200.0,0.00018308,2]
[322811098,1713347432508,-424.8,0.00018324,2]
[322811099,1713347432518,-2296.37190464,0.00018328,2]
[322811100,1713347432527,-861.1798634,0.00018328,2]
[322811101,1713347432536,-154.22,0.00018346,2]
[322811102,1713347432546,-154.22,0.00018346,2]
[322811103,1713347432555,-865.55,0.00018346,3]
[322811104,1713347432568,-363.14821497,0.00018356,2]
[322811105,1713347432577,-60767.78950368,0.00018356,2]
[322811106,1713347432702,-935.11650011,0.00018356,2]
[322811107,1713347432714,-12369.2008486,0.00018356,2]
[322811108,1713347432726,-571.549,0.00018356,2]
[322811109,1713347432737,-267.95,0.00018356,2]
[322811110,1713347432771,-83555.1478509,0.00018356,2]
[322811134,1713347438604,-1083.58696521,0.00018356,2]
[322811167,1713347441118,-315.27592446,0.00018256,2]
[322811168,1713347441130,-630.07053895,0.00018256,2]
[322811169,1713347441141,-1046.01611259,0.00018256,2]
[322811170,1713347441150,-5318.48748741,0.00018356,2]
[322811171,1713347441162,-4084.2532649,0.00018356,2]
[322811172,1713347441173,-5424.82997228,0.00018356,2]
[322811173,1713347441186,-4984.5475356,0.00018356,2]
[322811182,1713347443699,-2080.65,0.00018356,2]
[322811183,1713347443802,-9370.67425402,0.00018356,2]
[322811184,1713347443814,-3397.76989014,0.00018356,2]
[322811185,1713347443827,-1117.63928077,0.00018356,2]
[322811186,1713347443968,-319.06,0.00018356,2]
[322811213,1713347446476,-1718.67884822,0.00018356,2]
[322811214,1713347446591,-19745.16830214,0.00018356,2]
[322811215,1713347446603,-16797.217003,0.00018356,2]
[322811216,1713347446615,-307.44854805,0.00018356,2]
[322811217,1713347446699,-604.61412016,0.00018356,2]
[322811218,1713347446809,-317.394208,0.00018356,2]
[322811219,1713347446822,-2741.20162565,0.00018356,2]
[322811223,1713347453175,188.774073,0.00017437,2]
[322811224,1713347453209,133.80752763,0.00017437,2]
[322811232,1713347633809,2731.06404086,0.00028,30]
[322811253,1713347781193,262.97,0.00017484,2]
[322811254,1713347813129,426.32,0.0001747,2]
[322811255,1713347832409,173.67,0.0001747,2]
[322811256,1713347894033,288.12,0.00015506,2]
[322811257,1713347971833,71.5920699,0.00017365,2]
[322811258,1713347971856,2000.0,0.00017365,2]
[322811259,1713347971879,2000.0,0.00017365,2]
[322811260,1713347971903,2000.0,0.00017365,2]
[322811261,1713347971923,145.2379301,0.00017365,2]
[322811264,1713348035794,157.041718,0.00028,30]
[322811265,1713348037606,157.041718,0.00028,30]
[322811266,1713348060831,479.33,0.00017376,2]
[322811267,1713348061953,264758.38471956,0.00028,30]
[322811322,1713348240215,640.0,0.00017346,2]
[322811335,1713348412845,273.71,0.00015456,2]
[322811338,1713348490610,283.88,0.00017295,2]
[322811339,1713348510075,150.0,0.00017304,2]
[322811347,1713348557435,27.8420699,0.00017418,2]
[322811348,1713348557458,136.5979301,0.00017418,2]
[322811367,1713348631613,-408.48757247,0.00017527,2]
[322811368,1713348631623,-478.04051493,0.00017529,2]
[322811369,1713348631637,-276.56226801,0.00017529,2]
[322811370,1713348631647,-167.78,0.00017531,2]
[322811371,1713348631657,-360.0,0.00017546,2]
[322811372,1713348631668,-164.44,0.00017548,2]
[322811373,1713348631678,-109.01773199,0.0001762,2]
[322811374,1713348631877,-52.45665818,0.0001762,2]
[322811375,1713348631887,-164.44,0.00017677,2]
[322811376,1713348631897,-273.71,0.0001772,2]
[322811377,1713348631906,-164.44,0.00017807,2]
[322811378,1713348631916,-164.44,0.00017937,2]
[322811379,1713348631925,-722.0632557,0.00017989,2]
[322811380,1713348631934,-167.0,0.00017994,2]
[322811381,1713348631944,-150.0,0.00017999,2]
[322811382,1713348631954,-150.0,0.00017999,2]
[322811383,1713348631964,-17809.55777277,0.00018,2]
[322811384,1713348631976,-164.44,0.00018066,2]
[322811385,1713348631986,-164.44,0.00018196,2]
[322811387,1713348631995,-1000.0,0.00018256,2]
[322811390,1713348632005,-359.6044,0.00018256,2]
[322811391,1713348632015,-395.9848,0.00018256,2]
[322811393,1713348632024,-1837.09752373,0.00018256,2]
[322811395,1713348632033,-1430.59810041,0.00018256,2]
[322811397,1713348632042,-5192.89583089,0.00018256,2]
[322811399,1713348632051,-7754.45495558,0.00018256,2]
[322811401,1713348632060,-317.33395762,0.00018256,2]
[322811403,1713348632070,-5800.0,0.000183,2]
[322811405,1713348632079,-427.53,0.000183,2]
[322811407,1713348632089,-166.55,0.000183,2]
[322811409,1713348632098,-153.13,0.000183,2]
[322811410,1713348632108,-418.88,0.000183,2]
[322811411,1713348632117,-150.0,0.00018312,2]
[322811412,1713348632126,-164.44,0.00018326,2]
[322811413,1713348632135,-3634.0104,0.00018336,2]
[322811414,1713348632144,-423.46,0.00018346,3]
[322811415,1713348632154,-155.78220121,0.00018354,2]
[322811416,1713348632164,-434.02270858,0.00018354,2]
[322811417,1713348632173,-1013.65116567,0.00018354,2]
[322811418,1713348632182,-290.51857198,0.00018356,2]
[322811419,1713348632192,-293654.50366729,0.00018356,2]
[322811451,1713348637636,-4234.95186097,0.00018356,2]
[322811452,1713348637751,-126374.26980001,0.00018356,2]
[322811453,1713348637765,-6673.08862793,0.00018356,2]
[322811454,1713348637780,-39250.74470003,0.00018356,2]
[322811455,1713348637931,-1115.00636434,0.00018356,2]
[322811456,1713348637946,-20045.1978705,0.00018356,2]
[322811473,1713348640864,-3662.84182746,0.00018356,2]
[322811474,1713348640881,-1350.427572,0.00018356,2]
[322811475,1713348640895,-496.44974562,0.00018356,2]
[322811476,1713348640909,-1273.09673986,0.00018356,2]
[322811477,1713348640922,-46013.61269683,0.00018356,2]
[322811487,1713348642813,-1334.87114,0.00018356,2]
[322811495,1713348643610,-489.93368078,0.00018356,2]
[322811496,1713348643622,-814.54165487,0.00018356,2]
[322811497,1713348643634,-316675.00000005,0.00018356,2]
[322811498,1713348643670,-2210.09263392,0.00018356,2]
[322811521,1713348646097,-3076.91333,0.00018356,2]
[322811522,1713348646267,-552.006,0.00018356,2]
[322811523,1713348646325,-94095.1750787,0.00018356,2]
[322811524,1713348646335,-159587.2097897,0.00018356,2]
[322811525,1713348646381,-769.62058562,0.00018356,2]
[322811526,1713348646393,-252.749342,0.00018356,2]
[322811527,1713348652642,867.00991803,0.00017418,2]
[322811531,1713348766980,25000.0,0.00028,30]
[322811542,1713348898942,272.76,0.00015713,2]
[322811548,1713349005213,25000.0,0.00028,30]
[322811558,1713349238091,512.0,0.00017456,2]
[322811567,1713349391604,211.63215187,0.00015528,2]
[322811568,1713349391626,47.48784813,0.00015528,2]
[322811571,1713349441272,246.34,0.00017438,2]
[322811572,1713349470035,1000.0,0.000174,2]
[322811573,1713349531052,569.08,0.00017434,2]
[322811582,1713349674714,137.09215187,0.00017457,2]
[322811583,1713349674736,2000.0,0.00017457,2]
[322811584,1713349674757,1895.62784813,0.00017457,2]
[322811586,1713349750908,25000.0,0.00028,30]
[322811589,1713349802984,25000.0,0.00028,30]
[322811603,1713349831808,-333.00794755,0.00017508,2]
[322811604,1713349831819,-279.69657276,0.00017508,2]
[322811605,1713349831831,-1098.8377003,0.00017508,2]
[322811606,1713349831872,-2062.15035152,0.00017508,2]
[322811607,1713349831881,-150.0,0.00017508,2]